Cogmind - Beta 16.1 *** ADVENTURER MODE // 2026.03.13 @ 06:20:03 Player: Ms. V3-11A Result: Destroyed by B-86 Titan with Matter Neutralizer Performance ------------- Evolutions (5) 2500 Regions Visited (17) 3400 Robots Destroyed (263) 1315 Value Destroyed (11183) 11183 Prototype IDs (55) 1100 Alien Tech Used (0) 0 Bonus (5762) 5762 TOTAL SCORE: 25260 Bonus ------- High Alert Combat Kills 1527 Follower Combat Kills 2707 Registered with UFD 300 Met Optimus in HQ 500 Met Warlord at Base 500 MAIN.C Attacked Warlord 500 Warlord Defense Kills 2118 Built Enhanced Grunts 300 Friendly Fire -2690 Cogmind --------- Core Integrity 0/1000 Matter 290/300 Energy 150/170 System Corruption 0% Temperature Cool (9) Movement Core (1150) Ox22 Location -4/Proximity Caves Parts ------- > --- POWER (2) -------- Light Antimatter Reactor > --- PROPULSION (4) --- (None) > --- UTILITY (8) ------ Advanced Heat Sink High-capacity Storage Unit Advanced Weight Redist. System Advanced Targeting Computer Improved Hacking Suite A0-MCA's Component Scanner > --- WEAPON (3) ------- Junk Cannon > --- INVENTORY (20) --- Vortex Chain Reactor Advanced Energy Well (500) Improved Matter Compressor (300) Advanced Signal Interpreter Makeshift Salvage Targeting Computer Experimental Targeting Computer Experimental Target Analyzer Improved Weapon Shielding Centrium Medium Armor Plating Improved Hacking Suite System Mapper Improved System Shield System Purifier Advanced Variable Charge Gun Helical Railgun Helical Railgun Peak State ------------ > --- POWER ------------ Fission Core Neutrino Core > --- PROPULSION ------- Centrium Heavy Treads Centrium Heavy Treads > --- UTILITY ---------- Advanced Cooling System High-capacity Storage Unit Makeshift Salvage Targeting Computer Advanced Targeting Computer Centrium Medium Armor Plating Advanced Remote Force Field Improved Hacking Suite A0-MCA's Component Scanner > --- WEAPON ----------- KE Penetrator Helical Railgun Helical Railgun > --- INVENTORY -------- Vortex Chain Reactor Advanced Energy Well Improved Matter Compressor Advanced Signal Interpreter Makeshift Salvage Targeting Computer Experimental Targeting Computer Experimental Target Analyzer Improved Weapon Shielding Centrium Medium Armor Plating Improved Hacking Suite System Mapper Improved System Shield System Purifier Advanced Variable Charge Gun Advanced Variable Charge Gun KE Penetrator Helical Railgun Junk Cannon [Rating: 130] Favorites ----------- Power Heavy Ion Engine Engine Heavy Ion Engine Power Core Light Fission Core Reactor Antimatter Reactor Propulsion Light Treads Treads Light Treads Leg Carbon-fiber Leg Wheel Wheel Utility High-capacity Storage Unit Device Advanced Heat Sink Storage High-capacity Storage Unit Processor Advanced Targeting Computer Hackware Hacking Suite Protection Improved Medium Armor Plating Weapon Heavy Assault Rifle Energy Gun Advanced Beam Rifle Energy Cannon Heavy Particle Cannon Ballistic Gun Heavy Assault Rifle Ballistic Cannon Slug Cannon Launcher Grenade Launcher Special Weapon Junk Cannon Build | -11 -10 -10 -10 -9 -8 -8 -8 -8 -6 -6 -6 -6 -5 -5 -5 -5 -4 ------- Run | Yrd Mat Min Exi Min Mat Sto Rec Scr Fac Ext Cet Arc Fac Upp Upp War Pro Slots Evolved 10 | . . . . . 4 . . . 4 . . . 2 . . . . Power 1 | . . . . . . . . . 1 . . . . . . . . Propulsion 2 | . . . . . 1 . . . 1 . . . . . . . . Utility 6 | . . . . . 2 . . . 2 . . . 2 . . . . Weapon 1 | . . . . . 1 . . . . . . . . . . . . Parts Attached 126 | 3 2 1 . 6 5 20 . 3 18 16 9 6 12 5 4 8 8 Power 18 | . . . . 1 . 2 . . 3 2 2 . 2 1 1 2 2 Engine 8 | . . . . 1 . 2 . . 1 2 . . 1 . 1 . . Core 6 | . . . . . . . . . 2 . . . . 1 . 2 1 Reactor 4 | . . . . . . . . . . . 2 . 1 . . . 1 Propulsion 30 | 2 . . . 2 2 5 . 1 5 6 2 2 . . . . 3 Treads 24 | 2 . . . 1 2 5 . 1 2 6 2 2 . . . . 1 Leg 4 | . . . . . . . . . 2 . . . . . . . 2 Wheel 2 | . . . . 1 . . . . 1 . . . . . . . . Hover . | . . . . . . . . . . . . . . . . . . Flight . | . . . . . . . . . . . . . . . . . . Utility 42 | . . 1 . 1 2 5 . 1 7 5 2 . 9 3 1 3 2 Device 17 | . . . . . 1 1 . 1 3 3 1 . 3 1 . 1 2 Storage 4 | . . 1 . . . . . . . . . . 3 . . . . Processor 4 | . . . . . . . . . 1 . . . 1 1 . 1 . Hackware 5 | . . . . . . 1 . . 1 1 . . 2 . . . . Protection 12 | . . . . 1 1 3 . . 2 1 1 . . 1 1 1 . Artifact . | . . . . . . . . . . . . . . . . . . Weapon 36 | 1 2 . . 2 1 8 . 1 3 3 3 4 1 1 2 3 1 Energy Gun 13 | 1 . . . . . 2 . . 2 2 . 3 1 . 1 . 1 Energy Cannon 3 | . . . . . . 1 . . 1 . 1 . . . . . . Ballistic Gun 16 | . 2 . . . 1 5 . . . 1 2 1 . 1 1 2 . Ballistic Cannon 2 | . . . . 1 . . . . . . . . . . . 1 . Launcher 1 | . . . . 1 . . . . . . . . . . . . . Special Weapon 1 | . . . . . . . . 1 . . . . . . . . . Impact Weapon . | . . . . . . . . . . . . . . . . . . Slashing Weapon . | . . . . . . . . . . . . . . . . . . Piercing Weapon . | . . . . . . . . . . . . . . . . . . Special Melee Weapon . | . . . . . . . . . . . . . . . . . . Unidentified Prototypes 14 | . . . . . . 3 . 1 1 . 3 1 5 . . . . Corrupted Parts 12 | . . . . . . . . . . 3 5 4 . . . . . System Corruption 39 | . . . . . . . . . . 8 18 13 . . . . . Parts Lost 61 | . 2 . . 5 . 2 . . 12 4 . . 7 6 6 1 16 Power 12 | . 1 . . 1 . 1 . . 2 . . . 1 2 1 . 3 Propulsion 16 | . . . . 2 . . . . 6 1 . . 1 . 1 . 5 Utility 17 | . . . . 1 . 1 . . 2 . . . 4 2 3 . 4 Weapon 16 | . 1 . . 1 . . . . 2 3 . . 1 2 1 1 4 Highest Loss Streak 10 | . 1 . . 4 . 1 . . 5 2 . . 2 4 6 1 10 To Critical Strikes . | . . . . . . . . . . . . . . . . . . Average Backups 15 | 5 4 8 13 14 14 18 20 19 17 18 16 16 16 16 13 15 16 Power 2 | 1 . . 2 3 3 3 4 4 3 3 1 . . . . 1 1 Propulsion 1 | 3 . 1 1 . . 3 5 4 . . 1 2 1 1 . . . Utility 7 | . . 2 3 3 5 8 8 8 9 9 9 9 9 9 9 11 11 Weapon 4 | 1 2 5 6 6 6 3 3 2 3 4 4 4 4 5 4 3 4 Tool/Special . | . . . . . . . . . . . . . . . . . . Unused Backups 47 | . 2 . . . 7 6 . 3 2 6 6 1 2 . . 2 10 Power 7 | . . . . . . . . 1 . 3 . 1 . . . 1 1 Propulsion 1 | . . . . . . 1 . . . . . . . . . . . Utility 24 | . 1 . . . 2 3 . 1 2 2 3 . 1 . . 1 8 Weapon 15 | . 1 . . . 5 2 . 1 . 1 3 . 1 . . . 1 Tool/Special . | . . . . . . . . . . . . . . . . . . Average Slot Usage (%) 92 | . 94 100 100 90 79 95 100 99 95 99 87 85 85 80 83 83 64 Engine 7 | . 13 14 14 12 9 8 9 9 8 6 5 . 1 4 . 3 . Core 1 | . . . . . . . . . 3 6 2 . . . 4 7 4 Reactor 1 | . . . . . . . . . . . 4 13 9 4 4 . 1 Treads 21 | . 28 28 28 24 19 27 27 27 18 24 14 12 11 11 10 11 4 Device 8 | . . . . . 7 8 9 9 9 13 13 20 13 11 9 10 13 Storage 8 | . 14 14 14 14 9 8 9 9 6 6 6 6 5 5 5 5 5 Processor 3 | . . . . . . . . . 5 6 6 6 8 9 11 12 11 Hackware 5 | . . . . . . 6 9 9 9 6 5 . 6 5 5 5 5 Protection 8 | . 9 14 14 12 17 10 9 9 3 6 6 6 7 8 9 5 3 Energy Gun 5 | . 3 . . . . 11 9 8 7 9 2 . 1 2 . 3 4 Ballistic Gun 15 | . 24 28 28 20 5 12 18 17 8 5 10 14 15 11 15 11 3 Peak Build Rating 130 | 6 7 8 9 12 22 31 31 40 58 74 114 117 128 117 113 130 129 Average Rating 51 | 5 6 7 8 9 19 26 31 32 48 65 103 114 120 106 107 112 85 On Entrance 53 | 6 6 7 8 9 12 22 31 31 35 58 73 114 115 114 107 96 124 Avg Prop Armor Cover (%) 9 | . . . . 14 10 . . . 9 6 . . . . . . . Naked Turns . | . . . . . . . . . . . . . . . . . . Heaviest Build 115 | 11 11 45 45 51 62 65 64 64 77 79 113 113 115 95 97 110 108 Greatest Support 160 | 40 40 40 40 40 60 60 60 60 80 120 160 160 160 160 160 160 160 Greatest Overweight (x) 19 | . . 1 1 5 5 1 1 1 6 3 . . . . . . 19 Average Overweight (x) . | . . . 1 1 2 . 1 . . . . . . . . . 3 Largest Inventory Capacity 20 | 8 8 20 20 20 20 20 20 20 20 20 20 20 20 20 20 20 20 Average Capacity 18 | 8 8 14 20 20 20 19 20 20 20 20 20 20 20 20 20 20 20 Most Carried 20 | 5 7 10 14 16 17 20 20 20 20 20 20 20 20 20 17 20 19 Average Carried 16 | 2 4 8 13 14 14 18 20 19 18 19 19 19 19 18 15 17 18 Final Capacity 20 | 8 8 20 20 20 20 20 20 20 20 20 20 20 20 20 20 20 20 Final Carried 20 | 1 7 10 14 15 14 20 20 20 18 18 20 20 19 17 12 20 17 Class Distribution -------------------- 25% | Commander-Tank 24% | Mutant 21% | Scavenger-Tank 12% | Scavenger-Gunner 9% | Scavenger-Mutant 3% | Hacker-Gunner Dominant Class ---------------- Mutant | -10/Materials Mutant | -10/Mines Mutant | -10/Exiles Mutant | -9/Mines Scavenger-Mutant | -8/Materials Commander-Tank | -8/Storage Commander-Tank | -8/Recycling Commander-Tank | -8/Scraptown Hacker-Gunner | -6/Factory Scavenger-Gunner | -6/Extension Scavenger-Tank | -6/Cetus Scavenger-Tank | -6/Archives Scavenger-Tank | -5/Factory Scavenger-Mutant | -5/Upper Caves Scavenger-Tank | -5/Upper Caves Scavenger-Tank | -5/Warlord Scavenger-Mutant | -4/Proximity Caves Resources | -11 -10 -10 -10 -9 -8 -8 -8 -8 -6 -6 -6 -6 -5 -5 -5 -5 -4 ----------- Run | Yrd Mat Min Exi Min Mat Sto Rec Scr Fac Ext Cet Arc Fac Upp Upp War Pro Matter Collected 7205 | 200 275 64 . 152 50 924 62 50 725 568 230 153 1593 488 294 673 704 Remotely . | . . . . . . . . . . . . . . . . . . Salvage Created 13766 | . 393 91 . 158 47 1376 101 . 1616 1790 295 332 3745 1143 490 1012 1177 Parts 621 | . 19 3 . 8 6 83 6 . 61 67 11 16 162 53 24 47 55 Haulers Intercepted 9 | . 1 . . . . 4 . . . 1 . . 3 . . . . Recyclers Shooed 10 | . . . . 1 . . 1 . 4 . . . 4 . . . . Parts Field Recycled . | . . . . . . . . . . . . . . . . . . Retrieved Matter . | . . . . . . . . . . . . . . . . . . Parts Self-Destructed 131 | . . . . . . . . . . . . . . 55 23 . 53 Prevented . | . . . . . . . . . . . . . . . . . . Parts Restored . | . . . . . . . . . . . . . . . . . . Kills | -11 -10 -10 -10 -9 -8 -8 -8 -8 -6 -6 -6 -6 -5 -5 -5 -5 -4 ------- Run | Yrd Mat Min Exi Min Mat Sto Rec Scr Fac Ext Cet Arc Fac Upp Upp War Pro Combat Hostiles Destroyed 211 | . 8 3 . 12 1 21 1 . 25 25 2 1 42 22 8 18 22 Melee 3 | . . . . . . . . . . . . . 1 . . 2 . Guns 175 | . 8 3 . 1 . 18 1 . 20 18 . 1 39 22 8 15 21 Cannons 19 | . . . . 3 1 3 . . 5 6 . . . . . 1 . AOE 10 | . . . . 8 . . . . . . . . 2 . . . . Classes Destroyed 23 | . 3 1 . 6 1 3 . . 1 2 . . 2 . . 4 . Worker 12 | . . . . 1 . 3 . . 1 . . . 7 . . . . Builder 10 | . . . . 2 . 2 . . . 3 . . 3 . . . . Hauler 9 | . 1 . . . . 4 . . . 1 . . 3 . . . . Recycler 11 | . . . . 1 . 1 1 . 1 2 . . 5 . . . . Mechanic 2 | . . . . . . 1 . . 1 . . . . . . . . Operator 11 | . . . . . . 2 . . 1 2 . 6 . . . . . Watcher 3 | . 1 . . . . . . . . 1 . . 1 . . . . Swarmer 35 | . . 1 . . . . . . 3 8 . . . 11 2 . 10 Saboteur 3 | . . . . . . . . . . . . . 1 . . 2 . Grunt 88 | . 8 2 . . . 11 . . 15 9 . . 24 5 . 9 5 Brawler 10 | . . . . . . 2 . . 2 . . . 1 3 1 1 . Duelist 5 | . . . . . . . . . . . . . . 1 1 . 3 Protector 1 | . . . . . . . . . . . . . . . . 1 . Sentry 26 | . . . . . 1 8 1 . 2 4 . 1 5 1 1 . 2 Demolisher 4 | . . . . 2 . . . . . . . . . . . 2 . Specialist 1 | . . . . . . . . . . . . . . . . 1 . Hunter 6 | . . . . . . . . . . . . . 3 1 . . 2 Programmer 15 | . . . . . . . . . 3 1 . . 8 . 3 . . Behemoth 1 | . . . . . . . . . . 1 . . . . . . . Cetus Guard 2 | . . . . . . . . . . . 2 . . . . . . Enhanced Grunt 1 | . . . . . . . . . . . 1 . . . . . . Striker 1 | . . . . . . . . . . . . . . . . 1 . Executioner 1 | . . . . . . . . . . . . . . . . 1 . Zionite 1 | . . . . 1 . . . . . . . . . . . . . Assembled 10 | . . . . 10 . . . . . . . . . . . . . Thug 1 | . . . . . . . . . . 1 . . . . . . . Butcher 2 | . . . . . . . . . . 1 . 1 . . . . . Best Kill Streak 11 | . 3 2 . 11 1 11 1 . 6 5 2 3 11 7 3 7 6 Combat Bots Only 10 | . 3 2 . 10 1 6 1 . 6 5 2 1 9 7 3 7 6 Max Kills in Single Turn 3 | . 1 1 . 2 1 2 1 . 2 2 1 2 3 2 2 3 1 Gunslinging 2 | . . . . . . . . . 1 1 . . 1 1 . 2 . Exploded 2 | . . . . 1 . . . . . . . . 2 . . . . Melee 1 | . . . . . . . . . . . . . 1 . . 1 . Uniques/NPCs Destroyed 1 | . . . . . . . . . . . 1 . . . . . . A7 (-6/Cetus) Combat | -11 -10 -10 -10 -9 -8 -8 -8 -8 -6 -6 -6 -6 -5 -5 -5 -5 -4 -------- Run | Yrd Mat Min Exi Min Mat Sto Rec Scr Fac Ext Cet Arc Fac Upp Upp War Pro Hostile Shots Fired 1484 | . 37 28 . 32 2 139 4 . 226 258 11 10 249 116 51 116 205 Missed 448 | . 3 10 . 6 1 27 2 . 75 100 2 2 59 33 12 46 70 Hits 1036 | . 34 18 . 26 1 112 2 . 151 158 9 8 190 83 39 70 135 Melee 59 | . . . . 4 . . . . . . . . 3 6 17 2 27 Projectile 977 | . 34 18 . 22 1 112 2 . 151 158 9 8 187 77 22 68 108 AOE 19 | . . . . 5 . . . . . . . . . . . 14 . Critical Strikes 35 | . . . . . . 5 1 . 3 3 1 . 10 3 4 1 4 Damage Taken 13375 | . 346 166 . 500 12 1377 35 . 1912 1238 108 100 2522 1032 756 1195 2076 Core 1501 | . 24 61 . 93 . 104 . . 59 157 . . 141 130 95 95 542 Absorbed by Shields 1568 | . . . . . . . . . . 383 80 74 283 203 88 110 347 Redirected to Shielding 52 | . . . . . . 52 . . . . . . . . . . . Ignored by Resistances 4211 | . 107 51 . 142 3 392 11 . 532 484 51 47 782 343 228 367 671 Regen/Repaired (Parts) 899 | . . . . . . 364 . . . . . . 255 . . 280 . Core Remaining (%) 70 | 100 . . . 28 . . . 81 . . . 74 . . . . . Volleys Fired 625 | . 29 11 . 31 1 67 4 . 72 79 22 19 94 41 24 41 90 Largest 3 | . 2 2 . 2 1 3 3 . 3 3 3 3 3 3 3 3 3 Hottest 240 | . 60 40 . 60 40 129 107 . 191 158 199 145 240 149 101 240 151 Shots Fired 1493 | . 57 22 . 35 1 188 12 . 208 217 42 50 267 103 65 118 108 Gun 1328 | . 57 22 . 4 . 159 12 . 176 177 36 37 267 103 65 105 108 Cannon 149 | . . . . 15 1 29 . . 32 40 6 13 . . . 13 . Launcher 16 | . . . . 16 . . . . . . . . . . . . . Special . | . . . . . . . . . . . . . . . . . . Kinetic 1042 | . 45 22 . 19 1 132 8 . 102 63 30 37 242 83 65 107 86 Thermal 265 | . . . . . . 22 4 . 102 69 . . 25 20 . 1 22 Explosive 16 | . . . . 16 . . . . . . . . . . . . . Electromagnetic 170 | . 12 . . . . 34 . . 4 85 12 13 . . . 10 . Robot Hit Streak 48 | . 19 9 . 8 4 16 21 . 46 34 18 18 48 21 25 32 33 Robot Miss Streak 5 | . 2 1 . 2 . 5 . . 1 4 2 3 1 2 1 4 2 Penetration Max 1 | . . . . . . . . . . . 1 1 1 1 1 1 1 Secondary Targets 40 | . 1 . . . . 1 . . 4 4 . . 11 9 2 6 2 Max Gunslinging Chain 2 | . 1 . . . . 1 . . 1 1 . . 1 1 1 2 1 Shots Hit Robots 1180 | . 49 18 . 19 1 130 10 . 160 184 36 33 219 83 55 85 98 Core Hits 626 | . 25 4 . 31 1 66 3 . 73 140 11 19 114 33 16 47 43 Critical Kills 28 | . . . . . 1 2 . . . . 1 1 15 3 2 1 2 Critical Parts Destroyed 40 | . . . . 2 . 2 . . 1 . . 3 15 3 5 6 3 Critical Strikes 85 | . . . . 2 1 7 . . 7 2 3 4 31 8 7 8 5 Burn 9 | . . . . . . 1 . . 6 1 . . . 1 . . . Destroy 74 | . . . . 2 1 5 . . 1 . 3 4 31 7 7 8 5 Corrupt 2 | . . . . . . 1 . . . 1 . . . . . . . Melee Attacks . | . . . . . . . . . . . . . . . . . . Impact . | . . . . . . . . . . . . . . . . . . Slashing . | . . . . . . . . . . . . . . . . . . Piercing . | . . . . . . . . . . . . . . . . . . Sneak Attacks . | . . . . . . . . . . . . . . . . . . Combat Hostiles . | . . . . . . . . . . . . . . . . . . Follow-up Attacks . | . . . . . . . . . . . . . . . . . . Damage Inflicted 32518 | . 475 192 . 1243 25 2571 226 . 3205 4389 1011 1254 8252 2430 1517 3013 2715 Guns 27797 | . 473 192 . 37 . 2018 175 . 2563 3493 846 755 7771 2430 1517 2812 2715 Cannons 2966 | . . . . 321 25 473 . . 642 843 165 296 . . . 201 . Explosions 1693 | . . . . 885 . 80 . . . 52 . 203 473 . . . . Melee . | . . . . . . . . . . . . . . . . . . Ramming 62 | . 2 . . . . . 51 . . 1 . . 8 . . . . Kinetic 22665 | . 325 192 . 358 25 1639 95 . 1242 1551 743 755 7311 2011 1517 2767 2134 Thermal 5784 | . . . . . . 460 80 . 1942 1375 . 203 724 419 . . 581 Explosive 1094 | . . . . 885 . . . . . . . . 209 . . . . Electromagnetic 2913 | . 148 . . . . 472 . . 21 1462 268 296 . . . 246 . Impact . | . . . . . . . . . . . . . . . . . . Slashing . | . . . . . . . . . . . . . . . . . . Piercing . | . . . . . . . . . . . . . . . . . . Highest Corruption 39 | . . . . 3 . . . . . 8 26 39 1 1 9 9 . Average Corruption 6 | . . . . 3 . . . . . 5 21 30 1 1 2 9 . Corruption Purged . | . . . . . . . . . . . . . . . . . . Corruption Blocked . | . . . . . . . . . . . . . . . . . . Effects 146 | . . . . 4 . . . . . 60 31 17 13 8 10 3 . Message Errors 38 | . . . . . . . . . . 22 6 4 2 1 2 1 . Matter Fused 26 | . . . . . . . . . . 13 6 1 1 3 1 1 . Heat Flow Errors 24 | . . . . 2 . . . . . 4 8 2 6 . 2 . . Energy Discharges 13 | . . . . 1 . . . . . 7 1 . 1 . 2 1 . Parts Rejected 2 | . . . . 1 . . . . . 1 . . . . . . . Data Loss (minor) 19 | . . . . . . . . . . 5 4 4 3 2 1 . . Data Loss (major) 6 | . . . . . . . . . . 3 . 1 . 1 1 . . Misfires 5 | . . . . . . . . . . 2 . 2 . 1 . . . Alerts 6 | . . . . . . . . . . 1 3 1 . . 1 . . Weapon Failures 7 | . . . . . . . . . . 2 3 2 . . . . . Overload Shots 4 | . . . . . . . . . . . . . 3 . . 1 . Overflow Damage 122 | . . . . 32 . . . . 1 . . 50 35 . . 4 . Projectiles 37 | . . . . 13 . . . . 1 . . 19 . . . 4 . Explosions 85 | . . . . 19 . . . . . . . 31 35 . . . . Melee . | . . . . . . . . . . . . . . . . . . Knockbacks 7 | . . . . 2 . 3 1 . . . . . . . . 1 . Impact 1 | . . . . . . . 1 . . . . . . . . . . Kinetic 6 | . . . . 2 . 3 . . . . . . . . . 1 . Secondary . | . . . . . . . . . . . . . . . . . . Self-Inflicted Damage 75 | . . . . 65 . 10 . . . . . . . . . . . Shots 4 | . . . . 3 . 1 . . . . . . . . . . . Rammed 6 | . . . . . . . 4 . . . . . 2 . . . . Targets Rammed 9 | . 1 . . . . . 5 . . 1 . . 2 . . . . Kicked . | . . . . . . . . . . . . . . . . . . Crushed 3 | . 1 . . . . . 1 . . 1 . . . . . . . Highest Temperature 419 | . 97 18 . 197 . 419 25 . 327 218 263 166 266 102 202 130 99 Average Temperature 84 | . 33 8 . 74 . 137 24 . 66 43 113 63 49 38 92 78 52 Received Heat Transfer 4175 | . 255 102 . 80 9 945 27 . 867 308 . 12 847 254 6 260 203 Effects 5 | . . . . . . 5 . . . . . . . . . . . Shutdowns 2 | . . . . . . 2 . . . . . . . . . . . Energy Bleed 1 | . . . . . . 1 . . . . . . . . . . . Matter Decay 1 | . . . . . . 1 . . . . . . . . . . . Short Circuit 1 | . . . . . . 1 . . . . . . . . . . . Siege Activations 1 | . . . . . . . . . . . . . 1 . . . . Total Turns 4 | . . . . . . . . . . . . . 4 . . . . Longest Duration 4 | . . . . . . . . . . . . . 4 . . . . Martial Activations . | . . . . . . . . . . . . . . . . . . Shielding Activations . | . . . . . . . . . . . . . . . . . . Robots Disrupted . | . . . . . . . . . . . . . . . . . . Combat Hostiles . | . . . . . . . . . . . . . . . . . . Robots Corrupted 3 | . . . . . . . . . . 1 2 . . . . . . Combat Hostiles 3 | . . . . . . . . . . 1 2 . . . . . . Parts Fried 16 | . . . . . . . . . . 6 4 4 . . . 2 . Impact Corruptions . | . . . . . . . . . . . . . . . . . . Robots Melted 1 | . . . . . . . . . . . . . . . . . 1 Combat Hostiles 1 | . . . . . . . . . . . . . . . . . 1 Parts Melted 13 | . . . . . . 3 . . 7 . . . . . 1 . 2 Heat Transferred 9405 | . . . . . . 927 148 . 3663 2233 . 175 816 703 . . 740 Parts Sabotaged 4 | . . . . . . . . . . . . . 4 . . . . Parts Stolen . | . . . . . . . . . . . . . . . . . . Parts Stripped . | . . . . . . . . . . . . . . . . . . Power Chain Reactions 5 | . . . . . . 2 . . . 1 . 2 . . . . . Alert | -11 -10 -10 -10 -9 -8 -8 -8 -8 -6 -6 -6 -6 -5 -5 -5 -5 -4 ------- Run | Yrd Mat Min Exi Min Mat Sto Rec Scr Fac Ext Cet Arc Fac Upp Upp War Pro Maximum Alert Level 4 | . . . . . . 1 . . 1 1 . . 4 . . . . Low Security (%) 86 | 100 100 100 . 100 100 93 100 . 85 97 100 100 13 . . . . Level 1 2 | . . . . . . 6 . . 14 2 . . 1 . . . . Level 2 1 | . . . . . . . . . . . . . 13 . . . . Level 3 3 | . . . . . . . . . . . . . 31 . . . . Level 4 4 | . . . . . . . . . . . . . 39 . . . . Level 5 . | . . . . . . . . . . . . . . . . . . High Security . | . . . . . . . . . . . . . . . . . . Max Security . | . . . . . . . . . . . . . . . . . . Peak Influence 1588 | . 95 74 . 53 30 254 30 . 234 238 92 143 1588 . . . . Initial 26 | . . . . . . . . . . . 2 . 26 . . . . Average 151 | . 9 6 . 3 5 74 . . 124 50 13 105 949 . . . . Influence Increases 8448 | . 249 154 . 113 36 1048 94 . 1061 1095 113 220 2630 584 180 375 496 Destroy 0b10 Robot/C 5440 | . 160 120 . 40 20 600 60 . 760 780 80 80 1300 500 160 340 440 Destroy 0b10 Robot/NC 355 | . 10 . . 20 . 70 5 . 35 65 5 30 110 . . 5 . Destroy Leader 934 | . 44 20 . 10 10 160 . . 166 116 . . 298 50 20 . 40 Allied During Kill 526 | . . 5 . . . 139 16 . 60 56 12 52 181 4 . . 1 Successful Hack 196 | . 35 . . . 6 24 13 . 39 56 . . 23 . . . . Disable Machine 270 | . . 9 . . . 36 . . . 18 9 45 153 . . . . Anti-Garrison Action 150 | . . . . . . . . . . . . . 150 . . . . Destroy Structure 457 | . . . . 43 . 19 . . 1 4 7 13 370 . . . . Lose Combat Pursuer 120 | . . . . . . . . . . . . . 45 30 . 30 15 Influence Decreases 8448 | . 249 130 24 113 36 1048 94 . 1061 1090 118 130 1430 1048 630 671 576 Entered New Map 1355 | . . . 24 . . . . . . . 3 . 64 578 230 376 80 Time Decay 5449 | . 229 130 . 63 36 838 94 . 741 802 115 130 896 370 340 285 380 Lost Part 516 | . 20 . . 40 . 20 . . 120 20 . . 70 60 60 10 96 Lost Ally 460 | . . . . 10 . 40 . . 200 50 . . 100 40 . . 20 Purge Threat 668 | . . . . . . 150 . . . 218 . . 300 . . . . Squads Dispatched 37 | . 1 . . . . 3 . . 8 5 . . 19 . . . 1 Investigation 12 | . 1 . . . . . . . 3 2 . . 6 . . . . Extermination 7 | . . . . . . . . . 3 . . . 4 . . . . Reinforcement 9 | . . . . . . 2 . . 2 3 . . 2 . . . . Assault 7 | . . . . . . . . . . . . . 6 . . . 1 Garrison 2 | . . . . . . 1 . . . . . . 1 . . . . Intercept . | . . . . . . . . . . . . . . . . . . Searches Triggered . | . . . . . . . . . . . . . . . . . . Construction Impeded 3 | . . . . . . . . . . 2 . . 1 . . . . Haulers Reinforced 2 | . . . . . . . . . 1 . . . 1 . . . . Active Scanning Responses . | . . . . . . . . . . . . . . . . . . Cargo Convoy Interrupts . | . . . . . . . . . . . . . . . . . . Stealth | -11 -10 -10 -10 -9 -8 -8 -8 -8 -6 -6 -6 -6 -5 -5 -5 -5 -4 --------- Run | Yrd Mat Min Exi Min Mat Sto Rec Scr Fac Ext Cet Arc Fac Upp Upp War Pro Distress Signals 13 | . . . . . . 2 . . 2 2 1 . 5 . . 1 . Communications Jammed . | . . . . . . . . . . . . . . . . . . Distress Signals . | . . . . . . . . . . . . . . . . . . Times Spotted 358 | . 19 5 . 19 1 35 3 . 36 42 5 13 74 27 8 46 25 Peak Tracking Total 12 | . 4 3 . 5 . 6 1 . 7 6 5 2 9 7 5 12 7 Tactical Retreats 8 | . . . . 1 . . . . . . . . 3 2 . 1 1 Traps | -11 -10 -10 -10 -9 -8 -8 -8 -8 -6 -6 -6 -6 -5 -5 -5 -5 -4 ------- Run | Yrd Mat Min Exi Min Mat Sto Rec Scr Fac Ext Cet Arc Fac Upp Upp War Pro Traps Triggered 7 | . 1 . . . . 2 . . 1 3 . . . . . . . Indirectly . | . . . . . . . . . . . . . . . . . . Trap Hack Attempts . | . . . . . . . . . . . . . . . . . . Triggered . | . . . . . . . . . . . . . . . . . . Disarmed . | . . . . . . . . . . . . . . . . . . Reprogrammed . | . . . . . . . . . . . . . . . . . . Reused . | . . . . . . . . . . . . . . . . . . Traps Extracted . | . . . . . . . . . . . . . . . . . . Installed . | . . . . . . . . . . . . . . . . . . Triggered . | . . . . . . . . . . . . . . . . . . Machines | -11 -10 -10 -10 -9 -8 -8 -8 -8 -6 -6 -6 -6 -5 -5 -5 -5 -4 ---------- Run | Yrd Mat Min Exi Min Mat Sto Rec Scr Fac Ext Cet Arc Fac Upp Upp War Pro Machines Disabled 34 | . . 1 . . . 4 . . . 4 1 5 18 . . 1 . Max in Single Turn 3 | . . 1 . . . 1 . . . . 1 1 3 . . 1 . Garrison Access 2 | . . . . . . 1 . . . . . . 1 . . . . Machines Repaired . | . . . . . . . . . . . . . . . . . . Machines Dismantled . | . . . . . . . . . . . . . . . . . . Machines Sabotaged . | . . . . . . . . . . . . . . . . . . Overloaded Fab Kills . | . . . . . . . . . . . . . . . . . . Hacking | -11 -10 -10 -10 -9 -8 -8 -8 -8 -6 -6 -6 -6 -5 -5 -5 -5 -4 --------- Run | Yrd Mat Min Exi Min Mat Sto Rec Scr Fac Ext Cet Arc Fac Upp Upp War Pro Machines Accessed 71 | . 9 . 1 . 2 11 5 3 7 15 . . 13 1 . 4 . Terminals 47 | . 8 . . . 1 8 5 . 5 14 . . 6 . . . . Fabricators . | . . . . . . . . . . . . . . . . . . Repair Stations 5 | . 1 . . . . 2 . . . . . . 2 . . . . Recycling Units 6 | . . . . . . . . . 2 1 . . 3 . . . . Scanalyzers 2 | . . . . . 1 . . . . . . . 1 . . . . Garrison Access 2 | . . . . . . 1 . . . . . . 1 . . . . Total Hacks 185 | . 25 . 4 . 5 25 15 5 16 43 . . 38 1 . 8 . Successful 134 | . 18 . 4 . 4 22 9 5 9 30 . . 24 1 . 8 . Failed 50 | . 6 . . . 1 3 6 . 7 13 . . 14 . . . . Catastrophic 3 | . 1 . . . . . . . . . . . 2 . . . . Database Lockouts 1 | . 1 . . . . . . . . . . . . . . . . Manual 80 | . 19 . 3 . . 13 6 . 5 16 1 . 17 . . . . Terminals 128 | . 24 . . . 2 17 15 . 14 39 . . 17 . . . . Fabricators . | . . . . . . . . . . . . . . . . . . Repair Stations 15 | . 1 . . . . 6 . . . . . . 8 . . . . Recycling Units 10 | . . . . . . . . . 2 4 . . 4 . . . . Scanalyzers 9 | . . . . . 3 . . . . . . . 6 . . . . Garrison Access 5 | . . . . . . 2 . . . . . . 3 . . . . Terminal Hacks 70 | . 9 . 4 . 1 6 4 5 6 18 . . 8 1 . 8 . Record 17 | . . . 4 . . . 1 5 . . . . . . . 7 . Part Schematic 6 | . 2 . . . . 1 . . 1 2 . . . . . . . Robot Schematic 4 | . . . . . . . 2 . 1 1 . . . . . . . Robot Analysis 3 | . 2 . . . . . . . . 1 . . . . . . . Prototype ID Bank 7 | . 1 . . . . 1 . . 1 2 . . 2 . . . . Open Door 10 | . . . . . . 2 . . 1 5 . . . 1 . 1 . Branch Access Points 3 | . . . . . 1 . . . 1 . . . 1 . . . . Terminal Index 4 | . 1 . . . . 1 . . . 1 . . 1 . . . . Recycling Unit Index 1 | . . . . . . . . . . 1 . . . . . . . Alert Level 1 | . . . . . . . . . 1 . . . . . . . . Unreport Threat 5 | . . . . . . 1 . . . 2 . . 2 . . . . Locate Traps 1 | . 1 . . . . . . . . . . . . . . . . Registered Components 3 | . 1 . . . . . . . . 1 . . 1 . . . . Registered Prototypes 2 | . . . . . . . 1 . . . . . 1 . . . . Zone Layout 3 | . 1 . . . . . . . . 2 . . . . . . . Fabricator Hacks . | . . . . . . . . . . . . . . . . . . Repair Station Hacks 11 | . 1 . . . . 6 . . . . . . 4 . . . . Scan Component 5 | . . . . . . 3 . . . . . . 2 . . . . Repair 5 | . . . . . . 3 . . . . . . 2 . . . . Refit 1 | . 1 . . . . . . . . . . . . . . . . Recycling Unit Hacks 2 | . . . . . . . . . . 2 . . . . . . . Retrieve Components 2 | . . . . . . . . . . 2 . . . . . . . Scanalyzer 9 | . . . . . 3 . . . . . . . 6 . . . . Insert Component 4 | . . . . . 1 . . . . . . . 3 . . . . Analyze 4 | . . . . . 1 . . . . . . . 3 . . . . Retrieve Study 1 | . . . . . 1 . . . . . . . . . . . . Garrison Access Hacks 1 | . . . . . . 1 . . . . . . . . . . . Seal Access 1 | . . . . . . 1 . . . . . . . . . . . Unauthorized Hacks 41 | . 8 . . . . 9 5 . 3 10 . . 6 . . . . Terminals 35 | . 8 . . . . 9 5 . 1 9 . . 3 . . . . Assimilate 1 | . . . . . . 1 . . . . . . . . . . . Botnet 13 | . 3 . . . . 3 . . 1 3 . . 3 . . . . Skim 21 | . 5 . . . . 5 5 . . 6 . . . . . . . Fabricators . | . . . . . . . . . . . . . . . . . . Repair Stations . | . . . . . . . . . . . . . . . . . . Recycling Units 6 | . . . . . . . . . 2 1 . . 3 . . . . Fedlink 4 | . . . . . . . . . 1 1 . . 2 . . . . Scrapoids 2 | . . . . . . . . . 1 . . . 1 . . . . Scanalyzers . | . . . . . . . . . . . . . . . . . . Garrison Access . | . . . . . . . . . . . . . . . . . . Data Cores Recovered 1 | . . . . . . 1 . . . . . . . . . . . Used . | . . . . . . . . . . . . . . . . . . Hacking Detections 45 | . 4 . . . 2 8 5 . 5 10 1 . 10 . . . . Full Trace Events 4 | . . . . . . . . . 1 . . . 3 . . . . Feedback Events 2 | . . . . . . . . . . . . . 2 . . . . Corruption 1 | . . . . . . . . . . . . . 1 . . . . Hackware Fried 1 | . . . . . . . . . . . . . 1 . . . . Feedback Blocked . | . . . . . . . . . . . . . . . . . . Robot Schematics Acquired 4 | . . . . . . . 2 . 1 1 . . . . . . . Robots Built . | . . . . . . . . . . . . . . . . . . Authchips . | . . . . . . . . . . . . . . . . . . Time . | . . . . . . . . . . . . . . . . . . Total Robot Build Rating . | . . . . . . . . . . . . . . . . . . Part Schematics Acquired 8 | . 2 . . . 1 1 . . 1 2 . . 1 . . . . Parts Built . | . . . . . . . . . . . . . . . . . . Authchips . | . . . . . . . . . . . . . . . . . . Time . | . . . . . . . . . . . . . . . . . . Total Part Build Rating . | . . . . . . . . . . . . . . . . . . Part Studies Acquired 1 | . . . . . 1 . . . . . . . . . . . . Parts Repaired 4 | . . . . . . 2 . . . . . . 2 . . . . Time 294 | . . . . . . 96 . . . . . . 198 . . . . Parts Recycled . | . . . . . . . . . . . . . . . . . . Recycled Matter . | . . . . . . . . . . . . . . . . . . Retrieved Matter . | . . . . . . . . . . . . . . . . . . Retrieved Components 11 | . . . . . . . . . . 11 . . . . . . . Parts Scanalyzed 3 | . . . . . 1 . . . . . . . 2 . . . . Part Schematics Acquired 2 | . . . . . 1 . . . . . . . 1 . . . . Parts Damaged 1 | . . . . . 1 . . . . . . . . . . . . Bothacking | -11 -10 -10 -10 -9 -8 -8 -8 -8 -6 -6 -6 -6 -5 -5 -5 -5 -4 ------------ Run | Yrd Mat Min Exi Min Mat Sto Rec Scr Fac Ext Cet Arc Fac Upp Upp War Pro Used RIF Installer . | . . . . . . . . . . . . . . . . . . Robots Hacked . | . . . . . . . . . . . . . . . . . . Non-combat . | . . . . . . . . . . . . . . . . . . Combat . | . . . . . . . . . . . . . . . . . . Robot Hacks Applied . | . . . . . . . . . . . . . . . . . . Relay Couplers Released 2 | . . . . . . . . . . . . . 2 . . . . Machine Destruction 2 | . . . . . . . . . . . . . 2 . . . . Fabnet Peak Effective % . | . . . . . . . . . . . . . . . . . . Robots Rewired 8 | . . . . . . . . . . 5 . . . 2 . . 1 Allies Hacked . | . . . . . . . . . . . . . . . . . . Hacks Repelled . | . . . . . . . . . . . . . . . . . . Allies | -11 -10 -10 -10 -9 -8 -8 -8 -8 -6 -6 -6 -6 -5 -5 -5 -5 -4 -------- Run | Yrd Mat Min Exi Min Mat Sto Rec Scr Fac Ext Cet Arc Fac Upp Upp War Pro Total Allies 45 | . . 4 . 2 . 10 . . 5 11 5 . 5 2 . . 1 Largest Group 10 | . . 4 2 4 . 10 8 7 10 7 8 6 6 2 . . 1 Highest-Rated Group 695 | . . 71 32 81 . 173 141 125 236 295 695 440 415 59 . . 47 Highest-Rated Ally 159 | . . 31 16 31 . 29 29 29 31 159 159 96 96 30 . . 47 Initial UFD Resources 62 | . . . . . . . . . 33 40 44 44 47 58 58 58 62 Total Orders 2 | . . . . . . . . . . . 2 . . . . . . STAY 1 | . . . . . . . . . . . 1 . . . . . . FOLLOW 1 | . . . . . . . . . . . 1 . . . . . . Ally Attacks 453 | . . 11 . 14 . 66 10 . 109 78 8 20 119 10 . . 8 Total Damage 9926 | . . 132 . 137 . 755 151 . 1615 2262 223 588 3774 132 . . 157 Kills 89 | . . 3 . 2 . 10 2 . 16 19 3 3 28 3 . . . Allies Corrupted 3 | . . . . . . . . . . . . . 3 . . . . Allies Melted 1 | . . . . . . . . . . 1 . . . . . . . Intel | -11 -10 -10 -10 -9 -8 -8 -8 -8 -6 -6 -6 -6 -5 -5 -5 -5 -4 ------- Run | Yrd Mat Min Exi Min Mat Sto Rec Scr Fac Ext Cet Arc Fac Upp Upp War Pro Active Infowar (turns) 439 | . . . . . 151 288 . . . . . . . . . . . Structural 439 | . . . . . 151 288 . . . . . . . . . . . Robot Analysis Total 3 | . 2 . . . . . . . . 1 . . . . . . . Derelict Logs Recovered 5 | . . 2 . 2 . . . . . . . . . . 1 . . Drone Launches . | . . . . . . . . . . . . . . . . . . Drone Recoveries . | . . . . . . . . . . . . . . . . . . Exploration | -11 -10 -10 -10 -9 -8 -8 -8 -8 -6 -6 -6 -6 -5 -5 -5 -5 -4 ------------- Run | Yrd Mat Min Exi Min Mat Sto Rec Scr Fac Ext Cet Arc Fac Upp Upp War Pro Turns Passed 23660 | 6 1931 1395 1600 914 165 2109 2166 2412 1670 2478 703 273 1922 740 688 1216 1272 Spaces Moved 10117 | 1 1079 640 666 346 72 679 844 1152 715 1240 206 97 811 353 378 610 228 Core 33 | . . . . . . . . . . . . . . . . . 33 Treads 9853 | 1 1079 640 666 291 41 679 844 1152 581 1240 206 97 811 353 378 610 184 Legs 113 | . . . . . . . . . 102 . . . . . . . 11 Wheels 118 | . . . . 55 31 . . . 32 . . . . . . . . Hover . | . . . . . . . . . . . . . . . . . . Flight . | . . . . . . . . . . . . . . . . . . Fastest Speed 140 | 160 160 160 240 140 155 160 200 163 162 160 160 160 160 160 160 160 160 Average Speed 186 | 160 160 197 240 233 191 199 200 204 177 165 160 160 160 160 160 160 308 Slowest Speed 1000 | 160 160 240 240 320 320 200 200 216 400 280 160 160 160 160 160 160 1000 Overloaded Moves . | . . . . . . . . . . . . . . . . . . Propulsion Burnouts . | . . . . . . . . . . . . . . . . . . Robots Hopped 1 | . . . . . . . . . . . . . 1 . . . . Potential Cave-ins . | . . . . . . . . . . . . . . . . . . Cave-ins Triggered . | . . . . . . . . . . . . . . . . . . Exploration Rate (%) 62 | 2 99 99 94 77 7 96 99 87 23 92 49 70 27 60 60 58 26 Regions Visited 17 Branch Regions 13 Pre-discovered Areas 10 | . . 2 1 2 . 1 2 1 . 1 . . . . . . . Known Exits Taken 12 | . 1 1 . 1 1 . 1 1 1 1 1 1 1 . 1 . . Unknown Exits Taken 5 | 1 . . 1 . . 1 . . . . . . . 1 . 1 . Scrap Searched 11 | . . 1 . 1 . . . 6 . . . . . 1 1 . 1 Spaces Dug 10 | . . . . . . . . . . . . . 10 . . . . Terrain Destroyed 335 | . . . . 73 . 14 . . . . 14 13 134 28 3 13 43 Melee . | . . . . . . . . . . . . . . . . . . Projectile 215 | . . . . 7 . 6 . . . . 14 13 88 28 3 13 43 AOE 120 | . . . . 66 . 8 . . . . . . 46 . . . . Terrain Rammed . | . . . . . . . . . . . . . . . . . . Walls Destroyed . | . . . . . . . . . . . . . . . . . . Machines Disabled . | . . . . . . . . . . . . . . . . . . Actions | -11 -10 -10 -10 -9 -8 -8 -8 -8 -6 -6 -6 -6 -5 -5 -5 -5 -4 --------- Run | Yrd Mat Min Exi Min Mat Sto Rec Scr Fac Ext Cet Arc Fac Upp Upp War Pro Total 13685 | 8 1235 753 669 414 102 1287 1310 1209 955 1496 538 176 1232 445 408 758 690 Wait 2490 | . 117 98 . 24 6 470 456 35 133 104 279 34 268 36 . 81 349 Move 10098 | . 1078 639 665 345 71 678 843 1151 714 1239 205 96 808 352 377 609 228 Hop 1 | . . . . . . . . . . . . . 1 . . . . Pick Up 118 | . 7 3 4 4 9 26 1 6 7 8 8 8 12 3 . 10 2 Fast Attach 73 | . . . . 2 4 7 . 3 7 7 5 1 15 3 3 5 11 Attach 43 | 2 1 . . 3 1 4 . . 11 2 . 2 6 5 4 . 2 Detach 6 | . . . . . . 1 . . 1 . . 2 1 1 . . . Swap 63 | 1 1 1 . 5 . 13 . 2 6 10 4 5 9 . . 5 1 Drop 121 | 5 1 1 . . 10 17 1 12 4 19 15 9 16 1 . 7 3 Fire 625 | . 29 11 . 31 1 67 4 . 72 79 22 19 94 41 24 41 90 Melee . | . . . . . . . . . . . . . . . . . . Ram . | . . . . . . . . . . . . . . . . . . Kick . | . . . . . . . . . . . . . . . . . . Crush 9 | . 1 . . . . . 5 . . 1 . . 2 . . . . Escape Stasis 6 | . . . . . . 4 . . . 2 . . . . . . . Rewire 32 | . . . . . . . . . . 25 . . . 3 . . 4 Trap . | . . . . . . . . . . . . . . . . . . Miscellaneous . | . . . . . . . . . . . . . . . . . . Route ------- -11/Scrapyard -10/Materials (discovered 6 exits: *Mat x3 / *Min x2 / *Sub) -10/Mines (discovered 4 exits: *Mat x2 / *Exi / *Sub) -10/Exiles (discovered 2 exits: [*Min x2]) -9/Mines (discovered 2 exits: *Mat x2) -8/Materials (discovered 2 exits: *Sto x2) -8/Storage (discovered 2 exits: [*Fac] / *Rec) -8/Recycling (discovered 2 exits: *Fac / *Scr) -8/Scraptown (discovered 2 exits: *Fac x2) -6/Factory (discovered 5 exits: Fac / Low x2 / *Ext x2) -6/Extension (discovered 3 exits: *Fac x2 / *Cet) -6/Cetus -6/Archives -5/Factory (discovered 3 exits: [*Fac] / *Upp x2) -5/Upper Caves -5/Upper Caves -5/Warlord -4/Proximity Caves History --------- Turn | Location | Event 7 | -11/Scrapyard | Discovered new exit (range 0) 7 | -11/Scrapyard | Entered Materials 227 | -10/Materials | Discovered new exit (range 16) 312 | -10/Materials | Build established: Mutant 425 | -10/Materials | Discovered new exit (range 14) 523 | -10/Materials | Learned Storage security intel 606 | -10/Materials | Identified exit to Materials 631 | -10/Materials | Learned Storage emergency access door positions 646 | -10/Materials | Identified exit to Mines 653 | -10/Materials | Learned location of 2 exits from Mines 654 | -10/Materials | Learned 4 Subcaves zone layouts 660 | -10/Materials | Learned location of 2 exits from Mines 677 | -10/Materials | Identified exit to Subcaves 703 | -10/Materials | Learned Materials stockpile data 739 | -10/Materials | Learned Storage trap positions 929 | -10/Materials | Central database locked down 1938 | -10/Materials | Entered Mines 1939 | -10/Mines | Identified exit to Exiles 1947 | -10/Mines | Met a Derelict bent on vengeance 2027 | -10/Mines | Received a Mining Laser from a helpful Derelict 2055 | -10/Mines | Deemed a non-threat by the Exiles lab entrance 2173 | -10/Mines | Assisted by bots powering up and referring to "LRC-V3" 2177 | -10/Mines | Learned location of Zion (-7) 2759 | -10/Mines | A weapon hastily lodged in a ceiling crevice suddenly fell to the ground 3333 | -10/Mines | Entered Exiles 3333 | -10/Exiles | Accompanied by 2 allies 3408 | -10/Exiles | Discovered new exit (range 14) 3473 | -10/Exiles | Met 8R-AWN 3512 | -10/Exiles | Met EX-HEX 3598 | -10/Exiles | Met EX-BIN 3716 | -10/Exiles | Met EX-DEC 4106 | -10/Exiles | Visited The Gauntlet 4900 | -10/Exiles | Discovered new exit (range 14) 4933 | -10/Exiles | Entered Mines 4933 | -9/Mines | Accompanied by 2 allies 5358 | -9/Mines | Discovered new exit (range 16) 5411 | -9/Mines | Identified exit to Materials 5511 | -9/Mines | Assembled infested the area 5594 | -9/Mines | Core integrity fell below 50% 5623 | -9/Mines | Lost 4 allies 5628 | -9/Mines | Destroyed 10 combat bots 5664 | -9/Mines | Lost 4 parts (1p2n1w) 5815 | -9/Mines | Learned location of Storage (-8) 5847 | -9/Mines | Entered Materials 5847 | -8/Materials | Evolved 4 slots: Propulsion x1, Utility x2, Weapon x1 5880 | -8/Materials | Identified exit to Storage 6012 | -8/Materials | Entered Storage 6013 | -8/Storage | Loaded intel: 21 trap records 6205 | -8/Storage | Build established: Scavenger-Mutant 6556 | -8/Storage | Assisted by bots powering up and referring to "LRC-V3" 6610 | -8/Storage | Garrison activated, responded to threat 6690 | -8/Storage | Discovered new exit (range 16) 6855 | -8/Storage | Build established: Commander-Tank 7068 | -8/Storage | Repaired Hcp. Storage Unit 7205 | -8/Storage | Repaired Imp. Ion Engine 7245 | -8/Storage | Allied Derelicts emerged from ambush trap array 7831 | -8/Storage | Learned location of 1 exit from Lower Caves 7880 | -8/Storage | Learned location of 2 exits from Factory 7919 | -8/Storage | Learned location of 1 exit from Lower Caves 8026 | -8/Storage | Learned 2 Storage zone layouts 8096 | -8/Storage | Used back door to open Recycling access 8096 | -8/Storage | Discovered new exit (range 4) 8121 | -8/Storage | Entered Recycling 8121 | -8/Recycling | Accompanied by 8 allies 8412 | -8/Recycling | Scanned before Scraplab entrance 8973 | -8/Recycling | Learned location of 1 exit from Extension 9036 | -8/Recycling | Identified exit to Factory 9087 | -8/Recycling | Identified exit to Scraptown 9127 | -8/Recycling | Learned Storage trap positions 9177 | -8/Recycling | Learned 4 Factory zone layouts 9185 | -8/Recycling | Learned Factory security intel 9201 | -8/Recycling | Learned location of Extension (-6) 9225 | -8/Recycling | Learned location of 1 exit from Extension 9258 | -8/Recycling | Learned Storage trap positions 10228 | -8/Recycling | Entered Scraplab 10287 | -8/Recycling | Entered Scraptown 10287 | -8/Scraptown | Accompanied by 7 allies 10711 | -8/Scraptown | Discovered exit to Factory (range 5) 10923 | -8/Scraptown | Visited Science Testing Area 10943 | -8/Scraptown | Visited IN-MT5's Study 11001 | -8/Scraptown | Visited Spacefarers 11031 | -8/Scraptown | Visited Comm Corps 11145 | -8/Scraptown | Visited Shadow of the Wyrm 11502 | -8/Scraptown | Visited Cyclists 11534 | -8/Scraptown | Visited UFD Registry 11534 | -8/Scraptown | Registered with UFD as "Hammerranger" 11642 | -8/Scraptown | Visited LU-1G1's Boring Crew 11678 | -8/Scraptown | Visited Science Guys 11718 | -8/Scraptown | Visited A0-MCA Data Center 11730 | -8/Scraptown | Given an A rating by A0-MCA 11733 | -8/Scraptown | Found A0-MCA's Component Scanner 11772 | -8/Scraptown | Visited Cartography Club 11838 | -8/Scraptown | Visited Derelict Rescue Squad 11864 | -8/Scraptown | Visited DA-N13 Charitable Foundation 11882 | -8/Scraptown | Found DCF Scrap (28 items) 11939 | -8/Scraptown | Visited Curators Association 12034 | -8/Scraptown | Visited Junk Cannon Lab 12048 | -8/Scraptown | Found Prototype Special Weapon 12048 | -8/Scraptown | Identified Junk Cannon 12113 | -8/Scraptown | Visited Scrapoid Pod Storage 12152 | -8/Scraptown | Visited Scrap Suit Storage 12558 | -8/Scraptown | Met Optimus 12558 | -8/Scraptown | Accepted into 0bPrime 12679 | -8/Scraptown | Discovered exit to Factory (range 5) 12699 | -8/Scraptown | Entered Factory 12699 | -6/Factory | Accompanied by 7 allies 12699 | -6/Factory | Evolved 4 slots: Power x1, Propulsion x1, Utility x2 12700 | -6/Factory | Identified exit to Extension 12701 | -6/Factory | Identified exit to Factory 12782 | -6/Factory | Loaded intel: 8 recycling unit locations 12848 | -6/Factory | Scrapoids reinforcements arrived? 12919 | -6/Factory | Lost 6 allies 13169 | -6/Factory | Build established: Hacker-Gunner 13477 | -6/Factory | Identified exit to Lower Caves 13642 | -6/Factory | Lost 5 parts (1p2n1u1w) 13913 | -6/Factory | Build established: Scavenger-Gunner 14369 | -6/Factory | Entered Extension 14370 | -6/Extension | Identified exit to Cetus 14653 | -6/Extension | Rescued A7 15156 | -6/Extension | Rescued a captive Derelict 15200 | -6/Extension | Rescued a captive Derelict 15202 | -6/Extension | Rescued a captive Derelict 15460 | -6/Extension | Spotted B-75 Beast 15483 | -6/Extension | Allies destroyed B-75 Beast 15483 | -6/Extension | Spotted B-75 Beast 15521 | -6/Extension | Destroyed B-75 Beast 15530 | -6/Extension | Lost 6 allies 15771 | -6/Extension | Rescued a captive Derelict 15827 | -6/Extension | Rescued a captive Derelict 15869 | -6/Extension | Disrupted transfer network 15937 | -6/Extension | Learned 2 Lower Caves zone layouts 16055 | -6/Extension | Loaded intel: 17 terminal locations 16075 | -6/Extension | Learned Factory fabricator intel 16151 | -6/Extension | Learned location of 1 exit from Cetus 16204 | -6/Extension | Learned Hub_04(d) security intel 16403 | -6/Extension | Loaded intel: 1 recycling unit location 16403 | -6/Extension | Learned location of Protoforge (-2) 16847 | -6/Extension | Entered Cetus 16847 | -6/Cetus | Accompanied by 3 allies (A7) 16848 | -6/Cetus | Identified exit to Archives 16852 | -6/Cetus | Acquired a Cetus Manufacturing Module code from A7 16884 | -6/Cetus | Spotted Cetus Guard 16885 | -6/Cetus | Spotted Cetus Guard 16889 | -6/Cetus | Allies destroyed Cetus Guard 16889 | -6/Cetus | Spotted Cetus Guard 16894 | -6/Cetus | Destroyed Cetus Guard 16894 | -6/Cetus | Spotted Cetus Guard 16899 | -6/Cetus | Allies destroyed Cetus Guard 16903 | -6/Cetus | Destroyed Cetus Guard 16934 | -6/Cetus | System corruption reached 10% 17211 | -6/Cetus | Build established: Scavenger-Tank 17233 | -6/Cetus | Started Cetus Manufacturing Module 17258 | -6/Cetus | Manufactured an Enhanced Grunt 17283 | -6/Cetus | Manufactured an Enhanced Grunt 17308 | -6/Cetus | Manufactured an Enhanced Grunt 17333 | -6/Cetus | Manufactured an Enhanced Grunt 17358 | -6/Cetus | Manufactured an Enhanced Grunt 17463 | -6/Cetus | Murdered A7 17495 | -6/Cetus | Extracted ID and sensor layout for unrecognized location from A7's data core 17550 | -6/Cetus | Entered Archives 17550 | -6/Archives | Accompanied by 6 allies 17609 | -6/Archives | Discovered exit to Factory (range 14) 17737 | -6/Archives | System corruption reached 30% 17823 | -6/Archives | Entered Factory 17823 | -5/Factory | Accompanied by 5 allies 17823 | -5/Factory | Evolved 2 slots: Utility x2 17824 | -5/Factory | Loaded intel: 6 fabricator locations 18011 | -5/Factory | Loaded intel: 8 recycling unit locations 18057 | -5/Factory | Scrapoid reinforcements arrived 18061 | -5/Factory | Lost 3 allies 18139 | -5/Factory | Spotted B-75 Beast 18152 | -5/Factory | Allies destroyed B-75 Beast 18321 | -5/Factory | Repaired Adv. Energy Well 18457 | -5/Factory | Garrison activated, responded to threat 18723 | -5/Factory | First assault squad dispatched 18768 | -5/Factory | Identified exit to Upper Caves 19046 | -5/Factory | Destroyed 9 combat bots 19163 | -5/Factory | Imp. Hacking Suite fried by hacking feedback 19229 | -5/Factory | Discovered new exit (range 14) 19468 | -5/Factory | Repaired Adv. KE Penetrator 19745 | -5/Factory | Entered Upper Caves 20073 | -5/Upper Caves | Attracted the attention of an 0b10 outpost 20138 | -5/Upper Caves | Lost 4 parts (1p1u2w) 20151 | -5/Upper Caves | Destroyed 7 combat bots 20393 | -5/Upper Caves | Build established: Scavenger-Mutant 20455 | -5/Upper Caves | Discovered new exit (range 16) 20484 | -5/Upper Caves | Attracted the attention of an 0b10 checkpoint 20485 | -5/Upper Caves | Entered another Upper Caves area 20797 | -5/Upper Caves | Build established: Scavenger-Tank 21056 | -5/Upper Caves | Attracted the attention of an 0b10 checkpoint 21107 | -5/Upper Caves | Identified exit to Warlord 21109 | -5/Upper Caves | Lost 6 parts (1p1n3u1w) 21173 | -5/Upper Caves | Entered Warlord 21228 | -5/Warlord | System corruption cleaned by Quarantine Array 21339 | -5/Warlord | Found Prototype Reactor 21343 | -5/Warlord | Found Prototype Processor 21350 | -5/Warlord | Found Prototype Processor 21353 | -5/Warlord | Found Prototype Device 21359 | -5/Warlord | Found Prototype Hackware 21503 | -5/Warlord | Rebuked by Warlord 21528 | -5/Warlord | Warlord's base attacked by MAIN.C 21567 | -5/Warlord | Learned Research recycling unit intel 21567 | -5/Warlord | Learned 4 Testing zone layouts 21567 | -5/Warlord | Learned 4 Quarantine zone layouts 21567 | -5/Warlord | Learned 4 Command zone layouts 21567 | -5/Warlord | Learned Testing trap positions 21567 | -5/Warlord | Learned Quarantine emergency access door positions 21761 | -5/Warlord | Opened side exit 21878 | -5/Warlord | Warlord forces counterattacked 21954 | -5/Warlord | Lost 4 allies 22051 | -5/Warlord | Identified Exp. Target Analyzer 22051 | -5/Warlord | Identified Exp. Targeting Computer 22051 | -5/Warlord | Identified System Mapper 22051 | -5/Warlord | Identified System Purifier 22051 | -5/Warlord | Identified Vortex Chain Reactor 22067 | -5/Warlord | Spotted Striker 22097 | -5/Warlord | Destroyed Striker 22106 | -5/Warlord | Spotted Executioner 22134 | -5/Warlord | Lost 21 allies 22203 | -5/Warlord | Warlord base infiltrated, sounded retreat 22227 | -5/Warlord | Spotted Executioner 22235 | -5/Warlord | Destroyed Executioner 22256 | -5/Warlord | Destroyed 7 combat bots 22264 | -5/Warlord | Spotted Executioner 22283 | -5/Warlord | Spotted Striker 22356 | -5/Warlord | Spotted Striker 22359 | -5/Warlord | Spotted Executioner 22366 | -5/Warlord | Discovered new exit (range 15) 22389 | -5/Warlord | Entered Proximity Caves 22396 | -4/Proximity Caves | Lost 5 allies 22490 | -4/Proximity Caves | Lost 3 parts (1p1u1w) 22768 | -4/Proximity Caves | Build established: Scavenger-Mutant 22987 | -4/Proximity Caves | Attracted the attention of an 0b10 outpost 23018 | -4/Proximity Caves | Core integrity fell below 50% 23281 | -4/Proximity Caves | Core integrity fell below 20% 23354 | -4/Proximity Caves | Lost 10 parts (2p4n2u2w) 23622 | -4/Proximity Caves | Build established: Hacker-Mutant 23651 | -4/Proximity Caves | Spotted B-86 Titan 23661 | -4/Proximity Caves | Destroyed by B-86 Titan with Matter Neutralizer Last Messages --------------- 23289_ Flexi-carbon Leg destroyed. 23290_ L-61 Swordsman critical meltdown. 23290_ Microactuators melted. 23290_ Broken Flexi-carbon Leg melted. 23296_ Adv. Cooling System destroyed. 23297_ Acquired Lgt. Antimatter Reactor. 23299_ Broken Plasma Rifle destroyed. 23308_ Acquired 71 matter. 23313_ Acquired 29 matter. 23323_ Flexi-carbon Leg destroyed. 23329_ G-73 Enforcer destroyed. 23334_ Myomer Leg fries itself beyond repair. 23336_ Adv. Heat Sink fries itself beyond repair. 23336_ Hvy. Laser fries itself beyond repair. 23345_ Myomer Leg fries itself beyond repair. 23651_ Knocked back. 23651_ Penetrated by Slug. 23654_ Knocked back. 23654_ Penetrated by Slug. 23654_ Adv. Variable Charge Gun destroyed. Map ----- +----------------------------------------------------+ | ?????????????????????????????????????????????????? | | ?????????????????????????????????????????????????? | | ?????????????????????????????????????????????????? | | ?????????????????????????????????????????????????? | | ?????????????????????????????????????????????????? | | ?????????????????????????????????????????????????? | | ?????????????????????????????????????????????????? | | ?????????????????????????????????????????????????? | | ?????????????????????????????????????????????????? | | ?????????????????????????????????????????????????? | | ?????????????????????????????????????????????????? | | ?????????????????????????????????????????????????? | | ?????????????????????????????????????????????????? | | ?????????????????????????????????????????????????? | | ?????????????????????????????????????????????????? | | ?????????????????????????????????????????????????? | | ??????????????????###????????????????????????????? | | ???#######??????### ##???????????????????????????? | | #### ##???## ???????????????????????????? | | #### ? #??????????????????????????? | | ## ??? #????##???????????????????? | | #????? ??## ##??????????????????? | | # ##????? ### #??????????????????? | | ? #?# #####??# % #??????????????????? | | ?# ### #??# % ##?????????????????? | | ?# ## ##??# @ % #?????????????????? | | ## ## #### #?????????????????? | | ## ## ### ## #????????? | | #?## #????????? | | " #??### ;; #????????? | | ##### #????# #; ##????????? | | #??#######????# ## ###?????????? | | #### ##???????## ### ##? BB #???????????? | | #????????## ##?####??? BB #???????????? | | ##?????????# #????????? ??????????? | | #??????????# #?????????? ?????????? | | #####???????## #???##????? ###?????????? | | #????????## #?## ##????? #???????????? | | #?????????###?# ##????# #???????????? | | "## #?????????????# #?????# ????????????? | | ### ##???########## #?????????????????????? | | ### ###?# ?? #??????????????????????? | | ##" ### ###### #???????????????????????? | | ""# ## """"# ##???????????????????????? | | % % " # ##???????????????????????? | | """" # #???????????????????????? | | #"#"" % " + ##??????????????????????? | | ## ###### # " "###????????????????????? | | #####????## #""""% # " #????????????????????? | | ###????????## #####"## ###????????????????????? | +----------------------------------------------------+ Best States ------------- Heat Dissipation 90 Energy Generation 41 Energy Capacity 575 Matter Stores 300 Matter Capacity 300 Sight Range 16 Terrain Scan Density 10 Additional Mass Support 9 Armor Coverage 450 Resistance: KI 20 Resistance: TH 20 Resistance: EX 20 Resistance: EM 20 Resistance: I 20 Resistance: S 20 Resistance: P 20 Propulsion Shielding 33 Weapon Shielding 66 Evasion (%) 40 Targeting Accuracy 16 Recoil Reduction 4 Kinecelleration 40 Salvage Targeting 4 Offensive Hacking 34 Item Schematics ----------------- Hcp. Storage Unit | -10/Materials | Hacked Huge Storage Unit | -10/Materials | Hacked Adv. Targeting Computer | -8/Materials | Scanalyzed Arm. Treads | -8/Storage | Hacked Imp. Medium Treads | -6/Factory | Hacked Arm. Leg | -6/Extension | Hacked Imp. Hacking Suite | -6/Extension | Hacked Adv. KE Penetrator | -5/Factory | Scanalyzed Robot Schematics ------------------ L-31 Rogue | -8/Recycling | Hacked M-28 Smith | -8/Recycling | Hacked X-67 Chaingunner | -6/Factory | Hacked H-66 Slayer | -6/Extension | Hacked Fabricated ------------ Nothing Repaired ---------- Hcp. Storage Unit | 37% | -8/Storage Imp. Ion Engine | 27% | -8/Storage Adv. Energy Well | 18% | -5/Factory Adv. KE Penetrator | 5% | -5/Factory Studied --------- Lgt. Treads | -8/Materials | Hacked Alien Tech Used ----------------- None Achievements -------------- None Challenges ------------ None Game ------ Seed PhasingWeightDoomcannon Manual? 0 Play Time 03:04:55 Cumulative 491.2 hours Start 2026.03.13 @ 01:13:53 End 2026.03.13 @ 06:20:03 Sessions 1 Manual Loads 0 Difficulty Adventurer Special Mode None Game No. 351 Rogue 63 Adventurer 262 Explorer 26 Win Type - Total 2 Types 2/0/0/0/0/0/0/0/0/0 Lore% 83 Gallery% 71 Achievement% 52 Wizard Run 0 Options --------- Layout 2 ASCII 0 Keyboard 0 Movement Mouse Keybinds 0 Fullscreen 0 Font 16/Cog Map View 64x51 Zoom Use 0% Tactical HUD 1 Map Filters NONE Filters BRIGHTNESS(115)|SATURATION(100)|LOW_CONTRAST(0,16,30) Steam 1 RUN: 5f8cc45a-f426-4d83-a829-bf2dcf40fb9e